bitfinex/quotes_BTCUSD_20250610
["timestamp","ask_amount","ask_price","bid_price","bid_amount"]
[1749536390472,0.00204848,109290.0,109280.0,2.67674927]
[1749536390825,0.00204848,109290.0,109280.0,2.69230804]
[1749536391039,0.00204848,109290.0,109280.0,2.68515749]
[1749536391680,0.00204848,109290.0,109280.0,2.67874927]
[1749536391879,0.00204848,109290.0,109280.0,2.70345784]
[1749536392079,0.00204848,109290.0,109280.0,2.70345721]
[1749536392237,0.05109524,109310.0,109290.0,0.34]
[1749536392447,0.00204853,109310.0,109300.0,1.72398695]
[1749536392679,0.00204853,109310.0,109300.0,1.73992534]
[1749536392919,0.00204853,109310.0,109300.0,1.63953131]
[1749536393064,0.00204853,109310.0,109300.0,1.63312595]
[1749536393427,0.00204853,109310.0,109300.0,1.63953123]
[1749536393627,0.00204853,109310.0,109300.0,1.63312595]
[1749536393770,0.00204853,109310.0,109300.0,1.63953128]
[1749536394010,0.00304853,109310.0,109300.0,1.63953138]
[1749536394193,0.00304853,109310.0,109300.0,1.12632656]
[1749536394395,0.01804853,109310.0,109300.0,1.63953143]
[1749536394754,0.01804853,109310.0,109300.0,1.54840487]
[1749536394955,0.01804853,109310.0,109300.0,1.63953143]
[1749536395204,0.01804853,109310.0,109300.0,1.63312595]
[1749536395592,0.01804853,109310.0,109300.0,1.63240845]
[1749536395725,0.01904853,109310.0,109300.0,1.54767314]
[1749536395909,0.03494853,109310.0,109300.0,1.54128189]
[1749536396107,0.04409607,109310.0,109300.0,1.54767313]
[1749536396311,0.04409607,109310.0,109300.0,1.04159124]
[1749536396536,0.05324377,109310.0,109300.0,1.54128189]
[1749536396731,0.05324377,109310.0,109300.0,1.54767328]
[1749536397028,0.04409607,109310.0,109300.0,1.54767361]
[1749536397225,0.05324377,109310.0,109300.0,1.54128189]
[1749536397435,0.04409607,109310.0,109300.0,1.54767362]
[1749536397640,0.05324377,109310.0,109300.0,1.54767365]
[1749536397860,0.06239172,109310.0,109300.0,1.04159176]
[1749536398059,0.05324377,109310.0,109300.0,1.04159185]
[1749536398583,0.06239156,109310.0,109300.0,1.04159429]
[1749536398787,0.05324377,109310.0,109300.0,1.04159436]
[1749536399189,0.05324377,109310.0,109300.0,1.0352]
[1749536399367,0.06239164,109310.0,109300.0,1.0352]
[1749536400474,0.06239164,109310.0,109300.0,1.04159456]
[1749536401628,0.06239164,109310.0,109300.0,1.04159469]
[1749536401841,0.06239164,109310.0,109300.0,0.77442524]
[1749536402047,0.06239164,109310.0,109300.0,0.77442517]
[1749536402252,0.06239164,109310.0,109300.0,0.76803055]
[1749536402468,0.06239164,109310.0,109300.0,0.77442524]
[1749536402686,0.2453586,109310.0,109300.0,0.79966478]
[1749536402966,0.05324402,109310.0,109300.0,0.79966498]
[1749536403178,0.06239197,109310.0,109300.0,0.70450483]
[1749536403382,0.07154018,109310.0,109300.0,0.70450473]
[1749536403589,0.07154009,109310.0,109300.0,0.70450475]
[1749536403802,0.06239197,109310.0,109300.0,0.70450479]
[1749536404245,0.04409615,109310.0,109300.0,0.69811055]
[1749536404453,0.05324394,109310.0,109300.0,0.70450463]
[1749536404666,0.04409615,109310.0,109300.0,1.20419244]
[1749536405082,0.04409615,109310.0,109300.0,1.2105863]
[1749536405294,0.05324394,109310.0,109300.0,1.20419244]
[1749536405534,0.04409615,109310.0,109300.0,1.20419244]
[1749536405746,0.05324394,109310.0,109300.0,1.21058622]
[1749536405952,0.04409607,109310.0,109300.0,1.30574622]
[1749536406157,0.05324377,109310.0,109300.0,1.29935244]
[1749536406816,0.03494853,109310.0,109300.0,1.42426624]
[1749536407027,0.00404853,109310.0,109300.0,1.41787244]
[1749536407236,0.00404853,109310.0,109300.0,1.42426612]
[1749536409991,0.05384385,109310.0,109300.0,0.91818429]
[1749536410199,0.05384385,109310.0,109300.0,0.91179055]
[1749536410654,0.06299172,109310.0,109300.0,0.91179055]
[1749536411038,0.05384385,109310.0,109300.0,0.9181846]
[1749536411593,0.05384385,109310.0,109300.0,0.91179055]
[1749536411792,0.05384385,109310.0,109300.0,0.84535736]
[1749536412076,0.05384385,109310.0,109300.0,0.93648391]
[1749536412283,0.05384385,109310.0,109300.0,0.93008656]
[1749536412480,0.06299164,109310.0,109300.0,0.93648392]
[1749536412693,0.06299164,109310.0,109300.0,0.93648394]
[1749536413136,0.05384385,109310.0,109300.0,0.93648419]
[1749536413342,0.05384385,109310.0,109300.0,0.93648425]
[1749536413949,0.06299172,109310.0,109300.0,0.93650639]
[1749536414155,0.06299172,109310.0,109300.0,0.93008656]
[1749536414365,0.06299172,109310.0,109300.0,0.93650639]
[1749536414577,0.06299172,109310.0,109300.0,0.93008656]
[1749536414982,0.06299172,109310.0,109300.0,0.93650639]
[1749536415927,0.06299172,109310.0,109300.0,0.93650644]
[1749536416114,0.06299172,109310.0,109300.0,0.93008656]
[1749536416550,0.07213976,109310.0,109300.0,0.93650515]
[1749536416767,0.06299172,109310.0,109300.0,0.93650515]
[1749536417270,0.06299172,109310.0,109300.0,1.44261493]
[1749536417489,0.05384385,109310.0,109300.0,1.44261493]
[1749536417922,0.05384385,109310.0,109300.0,1.44261548]
[1749536418143,0.04469615,109310.0,109300.0,1.44261546]
[1749536418420,0.05384402,109310.0,109300.0,1.44261546]
[1749536418641,0.05384386,109310.0,109300.0,1.44261546]
[1749536418864,0.05384377,109310.0,109300.0,1.44261554]
[1749536419078,0.07213951,109310.0,109300.0,1.34745554]
[1749536419299,0.07213943,109310.0,109300.0,1.34745555]
[1749536419516,0.07213943,109310.0,109300.0,0.93004656]
[1749536419738,0.06299156,109310.0,109300.0,1.43615634]
[1749536419950,0.06299156,109310.0,109300.0,1.44257555]
[1749536420853,0.06299148,109310.0,109300.0,1.44257554]
[1749536421064,0.06299148,109310.0,109300.0,1.43615634]
[1749536421282,0.06299148,109310.0,109300.0,1.44257554]
[1749536421945,0.07213935,109310.0,109300.0,1.35144898]
[1749536422607,0.07213935,109310.0,109300.0,1.35144903]
[1749536422824,0.18294942,109320.0,109300.0,1.34502978]
[1749536423044,0.18294942,109320.0,109300.0,1.43632208]
[1749536423045,0.01829431,109320.0,109300.0,1.43632208]
[1749536423267,0.01829431,109320.0,109310.0,0.67651023]
[1749536423268,0.00914678,109320.0,109310.0,0.67651023]
[1749536423515,0.01829373,109320.0,109310.0,0.60760827]
[1749536423721,0.01829373,109320.0,109310.0,0.60118978]
[1749536423931,0.02744085,109320.0,109310.0,1.00118978]
[1749536424134,0.01829373,109320.0,109310.0,1.00760808]
[1749536424336,0.02744085,109320.0,109310.0,1.00760794]
[1749536424743,0.02744085,109320.0,109310.0,1.00860794]
[1749536424953,0.02744085,109320.0,109310.0,1.00860786]
[1749536425364,0.01829373,109320.0,109310.0,1.00218978]
[1749536425567,0.02744076,109320.0,109310.0,1.00318978]
[1749536425985,0.0161,109320.0,109310.0,1.00318978]
[1749536426265,0.05049231,109330.0,109310.0,1.10988208]
[1749536426464,0.05963884,109330.0,109320.0,0.67646181]
[1749536426650,0.05963884,109330.0,109320.0,0.67417525]
[1749536427097,0.05963884,109330.0,109320.0,0.16806547]
[1749536427313,0.05963884,109330.0,109320.0,0.17035204]
[1749536427517,0.04134603,109330.0,109320.0,0.67646182]
[1749536427726,0.05963876,109330.0,109320.0,1.07717525]
[1749536427942,0.06878538,109330.0,109320.0,0.57106547]
[1749536428374,0.06878538,109330.0,109320.0,0.57406547]
[1749536428589,0.06878538,109330.0,109320.0,0.59930547]
[1749536428824,0.06878529,109330.0,109320.0,0.59930547]
[1749536429679,0.05049231,109330.0,109320.0,1.10541525]
[1749536429899,0.05963876,109330.0,109320.0,0.59930547]
[1749536430087,0.05049231,109330.0,109320.0,0.59930547]
[1749536430317,0.05049223,109330.0,109320.0,0.59930547]
[1749536430754,0.05049198,109330.0,109320.0,1.10541525]
[1749536430967,0.04134528,109340.0,109320.0,1.30541525]
[1749536431187,0.06878154,109340.0,109330.0,0.58138165]
[1749536431394,0.05963584,109340.0,109330.0,0.16806547]
[1749536431605,0.06878154,109340.0,109330.0,0.16806547]
[1749536432226,0.07792732,109340.0,109330.0,0.16806547]
[1749536432917,0.06878229,109340.0,109330.0,0.16806547]
[1749536433125,0.25369796,109340.0,109330.0,0.17035181]
[1749536433310,0.25369796,109340.0,109330.0,0.16806547]
[1749536433819,0.24455268,109340.0,109330.0,0.16806547]
[1749536434239,0.24455268,109340.0,109330.0,0.56806547]
[1749536434817,0.24755268,109340.0,109330.0,0.56806547]
[1749536435392,0.23840715,109340.0,109330.0,0.59326547]
[1749536435986,0.22926145,109340.0,109330.0,0.6075752]
[1749536438078,0.22926145,109340.0,109330.0,0.5125352]
[1749536439230,0.22011567,109340.0,109330.0,0.6310152]
[1749536443431,0.22011567,109340.0,109330.0,0.6057752]
[1749536443904,0.22011567,109340.0,109330.0,0.6309752]
[1749536444307,0.72599879,109340.0,109330.0,0.6309752]
[1749536446069,0.72599879,109340.0,109330.0,0.59146547]
[1749536446070,0.84524919,109340.0,109330.0,0.59146547]
[1749536446291,0.93704705,109340.0,109330.0,0.60952241]
[1749536446512,0.93704705,109340.0,109330.0,0.63472241]
[1749536449101,0.93704705,109340.0,109330.0,0.60952241]
[1749536449316,0.93704705,109340.0,109330.0,0.63468241]
[1749536449528,0.93704705,109340.0,109330.0,0.60952241]
[1749536449731,0.96450105,109340.0,109330.0,0.63468241]
[1749536449942,0.96450105,109340.0,109330.0,0.59495569]
[1749536450150,0.96450105,109340.0,109330.0,0.62011569]
[1749536450582,0.96450105,109340.0,109330.0,0.59495569]
[1749536450794,0.96450105,109340.0,109330.0,0.62011569]
[1749536451008,0.96450105,109340.0,109330.0,0.59495569]
[1749536451221,0.96450105,109340.0,109330.0,0.62011569]
[1749536452081,0.96450105,109340.0,109330.0,0.22011569]
[1749536452497,0.96450105,109340.0,109330.0,0.62011569]
[1749536453367,1.47080387,109340.0,109330.0,0.59495569]
[1749536453787,1.47080387,109340.0,109330.0,0.62011569]
[1749536458034,1.47080387,109340.0,109330.0,0.59495569]
[1749536458232,1.47080387,109340.0,109330.0,0.62011569]
[1749536462012,0.33936753,109340.0,109330.0,0.62011569]
[1749536462215,0.83306264,109340.0,109330.0,0.56549228]
[1749536462383,0.83306264,109340.0,109330.0,0.63847775]
[1749536464690,0.83302264,109340.0,109330.0,0.63847775]
[1749536465744,0.83302264,109340.0,109330.0,0.61331775]
[1749536466121,0.83302264,109340.0,109330.0,0.63847775]
[1749536466333,0.83302264,109340.0,109330.0,0.65555625]
[1749536466540,0.83302264,109340.0,109330.0,0.63039622]
[1749536466764,0.84862264,109340.0,109330.0,0.61331775]
[1749536466968,0.84862264,109340.0,109330.0,0.63847775]
[1749536467248,0.84862264,109340.0,109330.0,0.65555596]
[1749536467490,0.84862264,109340.0,109330.0,0.65555788]
[1749536467727,0.82116864,109340.0,109330.0,0.65555788]
[1749536467941,0.82116864,109340.0,109330.0,0.65555989]
[1749536468163,0.34252567,109340.0,109330.0,0.63847775]
[1749536468385,0.24756567,109340.0,109330.0,0.63847775]
[1749536468600,0.81641864,109340.0,109330.0,0.63847775]
[1749536469489,0.31032567,109340.0,109330.0,0.63847775]
[1749536469703,0.81641864,109340.0,109330.0,0.63847775]
[1749536470661,0.66093989,109340.0,109330.0,0.63847775]
[1749536471096,0.65179411,109340.0,109330.0,0.63847775]
[1749536471765,0.55683411,109340.0,109330.0,0.63847775]
[1749536472124,0.05074114,109340.0,109330.0,0.63847775]
[1749536472346,0.5659793,109340.0,109330.0,0.63847775]
[1749536473131,0.05988633,109340.0,109330.0,0.63847775]
[1749536473292,0.72144497,109340.0,109330.0,0.63847775]
[1749536473705,0.5659793,109340.0,109330.0,0.63847775]
[1749536473900,0.74889497,109340.0,109330.0,0.63847775]
[1749536474092,0.5810793,109340.0,109330.0,0.63847775]
[1749536474296,0.5810793,109340.0,109330.0,0.65556886]
[1749536474668,0.5719336,109340.0,109330.0,0.65556886]
[1749536474870,0.5810793,109340.0,109330.0,0.65556886]
[1749536475072,0.5810793,109340.0,109330.0,0.6555676]
[1749536475280,0.5810793,109340.0,109330.0,0.63847775]
[1749536475627,0.5719336,109340.0,109330.0,0.65556762]
[1749536475828,0.58107921,109340.0,109330.0,0.63847775]
[1749536476028,0.59022499,109340.0,109330.0,0.65556778]
[1749536476413,0.59022499,109340.0,109330.0,0.63847775]
[1749536476612,0.59022499,109340.0,109330.0,0.65556862]
[1749536476865,0.59022499,109340.0,109330.0,0.65556866]
[1749536477262,0.59022499,109340.0,109330.0,0.65556868]
[1749536477474,0.59022499,109340.0,109330.0,0.65556867]
[1749536477676,0.59022499,109340.0,109330.0,0.65556868]
[1749536477894,0.59022499,109340.0,109330.0,0.6304087]
[1749536478206,0.77909547,109340.0,109330.0,0.6555687]
[1749536478548,0.77909547,109340.0,109330.0,0.65556886]
[1749536478740,0.77909547,109340.0,109330.0,0.6555688]
[1749536478741,0.75164547,109340.0,109330.0,0.6555688]
[1749536478953,0.75164547,109340.0,109330.0,0.63847775]
[1749536479147,0.06263683,109340.0,109330.0,0.65556887]
[1749536479358,0.5687298,109340.0,109330.0,0.65556887]
[1749536480527,0.5687298,109340.0,109330.0,0.65557256]
[1749536480728,0.75164547,109340.0,109330.0,0.65557256]
[1749536481051,0.75164547,109340.0,109330.0,0.63847775]
[1749536481323,0.75164547,109340.0,109330.0,0.65557256]
[1749536481646,0.75164547,109340.0,109330.0,0.65557331]
[1749536481842,0.74250003,109340.0,109330.0,0.63041331]
[1749536482057,1.248593,109340.0,109330.0,0.61331775]
[1749536482276,1.248593,109340.0,109330.0,0.63843775]
[1749536482579,1.276044,109340.0,109330.0,0.65553409]
[1749536482790,0.26385806,109340.0,109330.0,0.65553409]
[1749536482995,0.76995103,109340.0,109330.0,0.65553409]
[1749536483926,0.54448436,109340.0,109330.0,0.65553409]
[1749536484137,0.01414511,109340.0,109330.0,1.14453072]
[1749536484343,0.01414511,109340.0,109330.0,0.65553344]
[1749536484562,0.0182903,109340.0,109330.0,0.63843775]
[1749536484763,0.02743558,109340.0,109330.0,0.65553298]
[1749536484986,0.03658094,109340.0,109330.0,0.65553298]
[1749536485203,0.04354436,109350.0,109330.0,1.28784595]
[1749536485412,0.12448711,109350.0,109340.0,0.07298547]
[1749536485610,0.12448703,109350.0,109340.0,0.11193039]
[1749536485863,0.13363197,109350.0,109340.0,0.11193058]
[1749536486071,0.02956703,109350.0,109340.0,0.11193078]
[1749536486185,0.52651522,109350.0,109340.0,0.11193093]
[1749536486386,0.52651522,109350.0,109340.0,0.11193096]
[1749536486387,0.53566,109350.0,109340.0,0.11193096]
[1749536486588,0.53766,109350.0,109340.0,0.11193096]
[1749536487214,0.54680494,109350.0,109340.0,0.11193096]
[1749536487422,0.53766,109350.0,109340.0,0.11192245]
[1749536487625,0.53966,109350.0,109340.0,0.11192234]
[1749536487824,0.53966,109350.0,109340.0,0.11192226]
[1749536488042,0.54880494,109350.0,109340.0,0.09483775]
[1749536488283,0.54880494,109350.0,109340.0,0.1119222]
[1749536488509,0.54880494,109350.0,109340.0,0.11192216]
[1749536488734,0.54880494,109350.0,109340.0,0.51192216]
[1749536489171,0.54880494,109350.0,109340.0,0.49483775]
[1749536489804,0.25701091,109350.0,109340.0,0.49483775]
[1749536490009,0.76310388,109350.0,109340.0,0.63192449]
[1749536490222,0.76310388,109350.0,109340.0,0.63191911]
[1749536490223,0.25701091,109350.0,109340.0,0.63191911]
[1749536490462,0.76310388,109350.0,109340.0,0.63191911]
[1749536490688,0.25701091,109350.0,109340.0,0.63191911]
[1749536490908,0.76310388,109350.0,109340.0,0.63191911]
[1749536491108,0.76310388,109350.0,109340.0,0.63191825]
[1749536491311,0.25701091,109350.0,109340.0,0.63191827]
[1749536491528,0.58020494,109350.0,109340.0,0.63191827]
[1749536491747,0.07411189,109350.0,109340.0,0.63191827]
[1749536491965,0.58020486,109350.0,109340.0,0.65904965]
[1749536492621,0.7631038,109350.0,109340.0,0.65905278]
[1749536492841,0.7631038,109350.0,109340.0,0.65905279]
[1749536493321,0.7631038,109350.0,109340.0,0.6590528]
[1749536493567,0.75395944,109350.0,109340.0,0.65905284]
[1749536493791,0.75395944,109350.0,109340.0,0.64196913]
[1749536494453,0.67168172,109350.0,109340.0,0.64196913]
[1749536495553,0.68082658,109350.0,109340.0,0.64196913]
[1749536495792,0.68082658,109350.0,109340.0,0.52196913]
[1749536496003,0.68082658,109350.0,109340.0,0.64196913]
[1749536496238,0.1920438,109350.0,109340.0,0.64196913]
[1749536496459,0.69813677,109350.0,109340.0,0.64196913]
[1749536496683,0.69813677,109350.0,109340.0,0.65746913]
[1749536496901,0.69813677,109350.0,109340.0,0.67256913]
[1749536497363,0.52438261,109350.0,109340.0,0.67256913]
[1749536497606,0.54267216,109350.0,109340.0,0.67256913]
[1749536498054,0.00914436,109350.0,109340.0,0.67256913]
[1749536498286,0.02743357,109350.0,109340.0,0.67256913]
[1749536498526,0.01828888,109350.0,109340.0,0.67256913]
[1749536498764,0.00914436,109350.0,109340.0,1.1786621]
[1749536498991,0.0182888,109350.0,109340.0,1.1786621]
[1749536501295,0.0339,109370.0,109340.0,1.68475507]
[1749536501514,0.03857157,109370.0,109350.0,0.10747145]
[1749536501729,0.03857157,109370.0,109360.0,0.60093297]
[1749536501730,0.03857216,109370.0,109360.0,0.60093297]
[1749536501937,0.03857216,109370.0,109360.0,0.11669228]
[1749536502147,0.03857216,109370.0,109360.0,0.51669228]
[1749536502588,0.04771543,109370.0,109360.0,0.51669228]
[1749536502787,0.03857216,109370.0,109360.0,0.51669228]
[1749536503191,0.03857216,109370.0,109360.0,0.51769228]
[1749536503399,0.04771543,109370.0,109360.0,0.5312144]
[1749536503613,0.03857216,109370.0,109360.0,0.5312144]
[1749536504238,0.04771543,109370.0,109360.0,0.5312144]
[1749536504438,0.04771543,109370.0,109360.0,0.60419987]
[1749536504863,0.22143808,109370.0,109360.0,0.60419987]
[1749536506146,0.21229506,109370.0,109360.0,0.60419987]
[1749536506360,0.20315196,109370.0,109360.0,0.50935987]
[1749536506595,0.20315196,109370.0,109360.0,0.62931987]
[1749536508067,0.20315196,109370.0,109360.0,0.50935987]
[1749536508278,0.20315196,109370.0,109360.0,0.4363744]
[1749536508495,0.20315196,109370.0,109360.0,0.5562944]
[1749536508798,0.20315196,109370.0,109360.0,0.4363744]
[1749536508882,0.21835196,109370.0,109360.0,0.5562944]
[1749536509100,0.72396245,109370.0,109360.0,0.61082613]
[1749536509312,0.21835196,109370.0,109360.0,0.61082613]
[1749536509520,0.72396245,109370.0,109360.0,0.61082613]
[1749536510360,0.71481926,109370.0,109360.0,0.61078613]
[1749536511629,0.71481926,109370.0,109360.0,0.5562544]
[1749536514480,0.71481926,109370.0,109360.0,0.4363744]
[1749536514700,0.20920877,109370.0,109360.0,0.50935987]
[1749536514917,0.71481926,109370.0,109360.0,0.62923987]
[1749536515204,0.20920877,109370.0,109360.0,0.62923987]
[1749536515424,0.20315179,109370.0,109360.0,0.62923987]
[1749536517616,0.70876228,109370.0,109360.0,0.62923987]
[1749536518024,0.69961926,109370.0,109360.0,0.74767987]
[1749536523367,0.6997157,109370.0,109360.0,0.74767987]
[1749536523847,0.19400877,109370.0,109360.0,0.74767987]
[1749536524083,0.6997157,109370.0,109360.0,0.74767987]
[1749536525900,0.19400877,109370.0,109360.0,0.74767987]
[1749536526112,0.6997157,109370.0,109360.0,0.74767987]
[1749536526322,0.70885872,109370.0,109360.0,0.74767987]
[1749536527217,0.70885872,109370.0,109360.0,0.7540785]
[1749536528354,0.70885872,109370.0,109360.0,0.77115464]
[1749536528827,0.12088758,109370.0,109360.0,0.77115464]
[1749536529029,0.62659451,109370.0,109360.0,0.77115464]
[1749536529345,0.62659451,109370.0,109360.0,0.74930717]
[1749536529718,0.12088758,109370.0,109360.0,0.74930717]
[1749536529941,0.62659451,109370.0,109360.0,0.74930717]
[1749536530272,0.12088758,109370.0,109360.0,0.74930717]
[1749536530478,0.62659451,109370.0,109360.0,0.74930717]
[1749536530677,0.62659451,109370.0,109360.0,0.62942717]
[1749536530874,0.62659451,109370.0,109360.0,0.74286365]
[1749536531082,0.62659451,109370.0,109360.0,0.60594759]
[1749536531325,0.62659451,109370.0,109360.0,0.72578759]
[1749536533754,0.62659451,109370.0,109360.0,0.60594759]
[1749536534003,0.61745149,109370.0,109360.0,0.72578759]
[1749536534226,1.27066668,109370.0,109360.0,0.59242547]
[1749536534394,1.27066668,109370.0,109360.0,0.63924]
[1749536534731,1.27066668,109370.0,109360.0,0.59919773]
[1749536535090,0.76495975,109370.0,109360.0,0.59919773]
[1749536536083,0.76495975,109370.0,109360.0,0.69391773]
[1749536537387,0.76504979,109370.0,109360.0,0.69391773]
[1749536538912,0.76504979,109370.0,109360.0,0.51944]
[1749536539127,0.76504979,109370.0,109360.0,0.63924]
[1749536539371,0.76504979,109370.0,109360.0,0.51944]
[1749536539569,0.76504979,109370.0,109360.0,0.63924]
[1749536541684,0.25925282,109370.0,109360.0,0.63924]
[1749536541886,0.76504979,109370.0,109360.0,0.63924]
[1749536542097,0.25925282,109370.0,109360.0,0.401]
[1749536542312,0.76504979,109370.0,109360.0,0.63916]
[1749536543309,0.76504979,109370.0,109360.0,0.69379124]
[1749536544036,0.76504979,109370.0,109360.0,0.63916]
[1749536545288,0.76504979,109370.0,109360.0,0.69378731]
[1749536546102,0.76504979,109370.0,109360.0,0.63916]
[1749536547059,0.24415282,109370.0,109360.0,0.71214547]
[1749536547273,0.76504979,109370.0,109360.0,0.71214547]
[1749536547489,0.76504979,109370.0,109360.0,0.63916]
[1749536548824,0.76504979,109370.0,109360.0,0.71214547]
[1749536549814,0.76504979,109370.0,109360.0,0.63916]
[1749536550226,0.27466336,109370.0,109360.0,0.65556]
[1749536550434,0.27466336,109370.0,109360.0,0.74424547]
[1749536550435,0.19200852,109370.0,109360.0,0.74424547]
[1749536551653,0.19200852,109370.0,109360.0,0.71214547]
[1749536552296,0.69780549,109370.0,109360.0,0.71210547]
[1749536552458,0.68866247,109370.0,109360.0,0.71210547]
[1749536553104,0.68866247,109370.0,109360.0,0.59242547]
[1749536553307,0.83577073,109370.0,109360.0,0.71210547]
[1749536553460,0.83577073,109370.0,109360.0,0.61742547]
[1749536553660,0.83577073,109370.0,109360.0,0.54444]
[1749536553883,0.83577073,109370.0,109360.0,0.61742547]
[1749536555566,0.83577073,109370.0,109360.0,0.63912]
[1749536555903,0.83577073,109370.0,109360.0,0.51944]
[1749536556105,0.83577073,109370.0,109360.0,0.63912]
[1749536557617,0.83577073,109370.0,109360.0,0.51944]
[1749536557771,0.83577073,109370.0,109360.0,0.54444]
[1749536558400,0.83577073,109370.0,109360.0,0.51944]
[1749536558605,0.83577073,109370.0,109360.0,0.54444]
[1749536559213,0.83577091,109370.0,109360.0,0.54444]
[1749536559824,0.32997376,109370.0,109360.0,0.54444]
[1749536560027,0.29887376,109370.0,109360.0,0.54444]
[1749536560214,0.80467091,109370.0,109360.0,0.61742547]
[1749536561485,0.80467091,109370.0,109360.0,0.54444]
[1749536563392,0.80467091,109370.0,109360.0,0.49898547]
[1749536563956,1.17667091,109370.0,109360.0,0.49898547]
[1749536565068,1.17667091,109370.0,109360.0,0.47398547]
[1749536565257,1.17667091,109370.0,109360.0,0.49898547]
[1749536566008,0.83667091,109370.0,109360.0,0.49898547]
[1749536568847,0.93131091,109370.0,109360.0,0.47398547]
[1749536568979,0.93131091,109370.0,109360.0,0.49898547]
[1749536570022,0.42551376,109370.0,109360.0,0.49898547]
[1749536570220,0.93131091,109370.0,109360.0,0.49898547]
[1749536572310,0.42551376,109370.0,109360.0,0.49898547]
[1749536572513,0.93131091,109370.0,109360.0,0.49898547]
[1749536576717,0.93131091,109370.0,109360.0,0.47398547]
[1749536576917,0.93131091,109370.0,109360.0,0.42596]
[1749536577580,0.83667091,109370.0,109360.0,0.42596]
[1749536577800,0.93131091,109370.0,109360.0,0.42596]
[1749536578222,0.93131091,109370.0,109360.0,0.401]
[1749536578435,0.93131091,109370.0,109360.0,0.42596]
[1749536581256,0.93131091,109370.0,109360.0,0.49888505]
[1749536583392,0.42551376,109370.0,109360.0,0.49888505]
[1749536583626,0.42551376,109370.0,109360.0,0.52238898]
[1749536583627,0.93131091,109370.0,109360.0,0.52238898]
[1749536583829,0.93131091,109370.0,109360.0,0.52238867]
[1749536584254,0.93131091,109370.0,109360.0,0.49888505]
[1749536584531,0.93131091,109370.0,109360.0,0.51597971]
[1749536584756,0.91491091,109370.0,109360.0,0.52239002]
[1749536585562,0.91491091,109370.0,109360.0,0.52238989]
[1749536586018,0.89931091,109370.0,109360.0,0.52238989]
[1749536586260,0.80467091,109370.0,109360.0,0.52238989]
[1749536586476,0.80467091,109370.0,109360.0,0.52238983]
[1749536586477,0.89927091,109370.0,109360.0,0.52238983]
[1749536587314,0.89927091,109370.0,109360.0,0.51597939]
[1749536587520,0.80467091,109370.0,109360.0,0.52238977]
[1749536587733,0.89927091,109370.0,109360.0,0.52238977]
[1749536588559,0.89927091,109370.0,109360.0,0.51597939]
[1749536588764,0.89927091,109370.0,109360.0,0.50529517]
[1749536588971,0.89927091,109370.0,109360.0,0.49888505]
[1749536589179,0.89927091,109370.0,109360.0,0.52238883]
[1749536589596,0.89927091,109370.0,109360.0,0.51597871]
[1749536589809,0.89927091,109370.0,109360.0,0.52238898]
[1749536590012,0.89927091,109370.0,109360.0,0.51597888]
[1749536590215,0.89927091,109370.0,109360.0,0.52238913]
[1749536590427,0.80467091,109370.0,109360.0,0.50529523]
[1749536590633,0.89927091,109370.0,109360.0,0.49888505]
[1749536590890,0.89927091,109370.0,109360.0,0.52238917]
[1749536591297,0.80467091,109370.0,109360.0,0.52238917]
[1749536591500,0.80467091,109370.0,109360.0,0.53888907]
[1749536591701,0.29887376,109370.0,109360.0,0.51392908]
[1749536591907,0.89927091,109370.0,109360.0,0.53888876]
[1749536592106,0.89927091,109370.0,109360.0,0.51538505]
[1749536592543,0.89927091,109370.0,109360.0,0.53888651]
[1749536592758,0.89927091,109370.0,109360.0,0.52179397]
[1749536592959,0.89927091,109370.0,109360.0,0.53888445]
[1749536593701,0.89927091,109370.0,109360.0,0.53887991]
[1749536593826,0.89927091,109370.0,109360.0,0.53247215]
[1749536594029,0.89927091,109370.0,109360.0,0.52179282]
[1749536594225,0.89927091,109370.0,109360.0,0.53888023]
[1749536594454,0.89927091,109370.0,109360.0,0.53888021]
[1749536595268,0.89927091,109370.0,109360.0,0.53888014]
[1749536595593,0.89927091,109370.0,109360.0,0.51538505]
[1749536595798,0.89927091,109370.0,109360.0,0.53888011]
[1749536595999,0.89927091,109370.0,109360.0,0.53247237]
[1749536596211,0.1828655,109370.0,109360.0,0.55428011]
[1749536596418,0.1851527,109370.0,109360.0,0.55428011]
[1749536596626,0.69094985,109370.0,109360.0,0.55428011]
[1749536596816,0.68866265,109370.0,109360.0,0.55428011]
[1749536597292,0.1828655,109370.0,109360.0,0.53719181]
[1749536597511,0.1851527,109370.0,109360.0,0.55427651]
[1749536598347,0.1851527,109370.0,109360.0,0.5542753]
[1749536598970,0.1851527,109370.0,109360.0,0.5217906]
[1749536599178,0.1851527,109370.0,109360.0,0.50529068]
[1749536599380,0.1851527,109370.0,109360.0,0.50529057]
[1749536599590,0.1851527,109370.0,109360.0,0.51596638]
[1749536600065,0.1851527,109370.0,109360.0,0.52237187]
[1749536600236,0.1851527,109370.0,109360.0,0.52237179]
[1749536600566,0.1851527,109370.0,109360.0,0.52237161]
[1749536600777,0.1851527,109370.0,109360.0,0.50529067]
[1749536600993,0.1851527,109370.0,109360.0,0.49888505]
[1749536601211,0.1851527,109370.0,109360.0,0.52237567]
[1749536601432,0.1851527,109370.0,109360.0,0.53038505]
[1749536601641,0.1851527,109370.0,109360.0,0.47454803]
[1749536601852,0.1851527,109370.0,109360.0,0.4809562]
[1749536602270,0.1851527,109370.0,109360.0,0.46386805]
[1749536602490,0.1851527,109370.0,109360.0,0.54744239]
[1749536602707,0.1851527,109370.0,109360.0,0.5538505]
[1749536602924,0.1851527,109370.0,109360.0,0.53676222]
[1749536603129,0.1851527,109370.0,109360.0,0.55385063]
[1749536603337,0.1851527,109370.0,109360.0,0.55384946]
[1749536604010,0.01828629,109370.0,109360.0,0.53676222]
[1749536604219,0.20115179,109370.0,109360.0,0.54744152]
[1749536604445,0.01828579,109370.0,109360.0,0.53676218]
[1749536604662,0.22113333,109380.0,109370.0,0.032]
[1749536604901,0.22113383,109380.0,109370.0,0.1500543]
[1749536605111,0.21199156,109380.0,109370.0,0.15005364]
[1749536605323,0.70864628,109380.0,109370.0,0.22294776]
[1749536605536,0.70864628,109380.0,109370.0,0.1500514]
[1749536605742,0.70864628,109380.0,109370.0,0.12656]
[1749536605948,0.70864628,109380.0,109370.0,0.14364043]
[1749536606168,0.20284913,109380.0,109370.0,0.14364043]
[1749536606385,0.70864628,109380.0,109370.0,0.157885]
[1749536606594,0.70864628,109380.0,109370.0,0.23077912]
[1749536606801,0.70864628,109380.0,109370.0,0.24785744]
[1749536607015,0.70964628,109380.0,109370.0,0.23077862]
[1749536607225,0.70964628,109380.0,109370.0,0.24785736]
[1749536607465,0.70964628,109380.0,109370.0,0.24785725]
[1749536607686,0.70964628,109380.0,109370.0,0.24785689]
[1749536607899,0.20384913,109380.0,109370.0,0.24145259]
[1749536608085,0.70964628,109380.0,109370.0,0.24785701]
[1749536608232,0.70964628,109380.0,109370.0,0.62437412]
[1749536608663,0.70964628,109380.0,109370.0,0.64785659]
[1749536609000,0.70964628,109380.0,109370.0,0.64785664]
[1749536609208,0.70964628,109380.0,109370.0,0.64789664]
[1749536609418,0.70964628,109380.0,109370.0,0.62441412]
[1749536609622,0.70964628,109380.0,109370.0,0.63081641]